bitfinex/quotes_BTCUSD_20240815
["timestamp","ask_amount","ask_price","bid_price","bid_amount"]
[1723684231375,1.03988754,58965.0,58964.0,0.0009064]
[1723684231702,1.01249779,58965.0,58964.0,0.0009064]
[1723684231898,0.93633193,58965.0,58964.0,0.0009064]
[1723684232244,0.93612781,58965.0,58964.0,0.0009064]
[1723684232503,0.95012781,58965.0,58964.0,0.0009064]
[1723684232715,1.15403424,58965.0,58964.0,0.0009064]
[1723684232892,1.02628255,58965.0,58964.0,0.0009064]
[1723684233330,1.0262831,58965.0,58964.0,0.0009064]
[1723684233784,0.9464831,58965.0,58964.0,0.0009064]
[1723684233993,0.6072991,58965.0,58964.0,0.0009064]
[1723684234211,0.02257193,58965.0,58964.0,0.73576269]
[1723684234425,0.02257193,58965.0,58964.0,0.81756269]
[1723684234648,0.02257193,58965.0,58964.0,1.15675269]
[1723684234865,0.02257193,58965.0,58964.0,1.49594269]
[1723684235309,0.014,58965.0,58964.0,1.49594269]
[1723684235716,0.014,58965.0,58964.0,1.15675269]
[1723684235920,0.014,58965.0,58964.0,0.81756269]
[1723684236936,0.014,58965.0,58964.0,0.47837269]
[1723684237108,0.014,58965.0,58964.0,0.0009064]
[1723684237311,0.02193865,58965.0,58964.0,0.0009064]
[1723684237487,0.00793865,58965.0,58964.0,0.0009064]
[1723684237720,0.01093865,58965.0,58964.0,0.0009064]
[1723684238923,0.18053065,58965.0,58964.0,0.0009064]
[1723684239307,0.51971465,58965.0,58964.0,0.0009064]
[1723684240309,0.01093865,58965.0,58964.0,0.24107769]
[1723684240504,0.01093865,58965.0,58964.0,0.41067269]
[1723684240873,0.01093865,58965.0,58964.0,1.07595269]
[1723684241079,0.01093865,58965.0,58964.0,1.15315269]
[1723684241283,0.00793865,58965.0,58964.0,1.15315269]
[1723684241552,0.05079766,58971.0,58970.0,0.0772]
[1723684241750,0.05079766,58971.0,58970.0,0.74890329]
[1723684241963,0.05079721,58971.0,58970.0,0.0772]
[1723684242172,0.169592,58965.0,58964.0,0.0009064]
[1723684243041,0.007,58965.0,58964.0,0.33347269]
[1723684243215,0.007,58965.0,58964.0,0.67266269]
[1723684243657,0.007,58965.0,58964.0,0.73766269]
[1723684243765,0.00534819,58965.0,58964.0,0.73766269]
[1723684245024,0.00534819,58965.0,58964.0,0.0009064]
[1723684245230,0.17494019,58965.0,58964.0,0.0009064]
[1723684246226,0.00534819,58965.0,58964.0,0.0009064]
[1723684246796,0.17494019,58965.0,58964.0,0.0009064]
[1723684248743,0.51412419,58965.0,58964.0,0.0009064]
[1723684248919,1.20504952,58965.0,58964.0,0.0009064]
[1723684249151,1.23045269,58965.0,58964.0,0.0009064]
[1723684250082,1.10343681,58965.0,58964.0,0.0009064]
[1723684250575,1.43727262,58965.0,58964.0,0.0009064]
[1723684250806,1.77710627,58965.0,58964.0,0.0009064]
[1723684251020,2.32180786,58965.0,58964.0,0.0009064]
[1723684251245,2.32180786,58965.0,58964.0,0.00061165]
[1723684251246,2.45494665,58965.0,58964.0,0.00061165]
[1723684251481,2.44694665,58965.0,58964.0,0.00061165]
[1723684251713,2.46686149,58965.0,58964.0,0.00061165]
[1723684252142,2.4567227,58965.0,58964.0,0.00061165]
[1723684252326,3.42462693,58965.0,58964.0,0.00061165]
[1723684252521,3.43862693,58965.0,58964.0,0.00061165]
[1723684253563,3.60989186,58965.0,58964.0,0.00061165]
[1723684253811,3.59589186,58965.0,58964.0,0.00061165]
[1723684254227,3.43862693,58965.0,58964.0,0.00061165]
[1723684254589,3.42462693,58965.0,58964.0,0.00061165]
[1723684255061,3.43862693,58965.0,58964.0,0.00061165]
[1723684256098,3.25265564,58965.0,58964.0,0.00061165]
[1723684256964,2.27275141,58965.0,58964.0,0.00061165]
[1723684257860,2.24798059,58965.0,58964.0,0.00061165]
[1723684259149,2.44754695,58965.0,58964.0,0.00061165]
[1723684259362,2.47054695,58965.0,58964.0,0.00061165]
[1723684261136,2.43390066,58965.0,58964.0,0.00061165]
[1723684261337,2.43390066,58965.0,58964.0,0.00034229]
[1723684261546,2.46977061,58965.0,58964.0,0.00034229]
[1723684262168,2.47059561,58965.0,58964.0,0.00034229]
[1723684262918,3.78968384,58965.0,58964.0,0.00034229]
[1723684265735,3.79908301,58965.0,58964.0,0.00034229]
[1723684267201,3.79908301,58965.0,58964.0,0.00012995]
[1723684267202,3.97013451,58965.0,58964.0,0.00012995]
[1723684267616,3.79908301,58965.0,58964.0,0.00012995]
[1723684268774,4.14826701,58965.0,58964.0,3.938e-05]
[1723684269000,4.14826701,58965.0,58951.0,0.0009064]
[1723684269001,1.536508,58958.0,58951.0,0.0009064]
[1723684269263,3.97654268,58958.0,58951.0,0.0009064]
[1723684269460,3.98436225,58958.0,58951.0,0.0009064]
[1723684270087,3.96698887,58958.0,58951.0,0.0009064]
[1723684270491,4.31621287,58958.0,58951.0,0.0009064]
[1723684271149,2.215183,58952.0,58951.0,8e-07]
[1723684271435,0.648917,58937.0,58936.0,0.0009075]
[1723684271640,1.62113331,58937.0,58936.0,0.0009075]
[1723684271822,1.96825938,58937.0,58936.0,0.0009075]
[1723684272195,2.09485508,58937.0,58936.0,0.0009075]
[1723684273352,2.06950021,58937.0,58936.0,0.0009075]
[1723684273620,2.2324715,58937.0,58936.0,0.0009075]
[1723684274084,2.2464715,58937.0,58936.0,0.0009075]
[1723684274328,2.23879725,58937.0,58936.0,0.0009075]
[1723684274855,2.0543843,58937.0,58936.0,0.0009075]
[1723684275079,2.15562513,58937.0,58936.0,0.0009075]
[1723684275341,2.05383092,58937.0,58936.0,0.0009075]
[1723684275558,2.03016847,58937.0,58936.0,0.0009075]
[1723684275807,1.95427565,58937.0,58936.0,0.0009075]
[1723684276288,2.03312381,58937.0,58936.0,0.0009075]
[1723684276509,1.95723099,58937.0,58936.0,0.0009075]
[1723684276906,1.95427565,58937.0,58936.0,0.0009075]
[1723684277117,2.00484426,58937.0,58936.0,0.0009075]
[1723684277774,1.95427565,58937.0,58936.0,0.0009075]
[1723684277925,2.00484426,58937.0,58936.0,0.0009075]
[1723684278137,2.10483035,58937.0,58936.0,0.0009075]
[1723684278753,2.10482811,58937.0,58936.0,0.0009075]
[1723684278890,1.94185682,58937.0,58936.0,0.0009075]
[1723684279097,1.89130436,58937.0,58936.0,0.0009075]
[1723684279295,1.91430436,58937.0,58936.0,0.0009075]
[1723684280433,1.96485682,58937.0,58936.0,0.0009075]
[1723684280844,2.89420859,58937.0,58936.0,0.0009075]
[1723684281257,3.05717988,58937.0,58936.0,0.0009075]
[1723684281467,3.37058229,58937.0,58936.0,0.00036348]
[1723684281697,3.50398311,58937.0,58936.0,0.00036348]
[1723684281869,3.50398311,58937.0,58936.0,0.00017342]
[1723684281870,3.43751301,58937.0,58936.0,0.00017342]
[1723684282100,3.6004843,58937.0,58936.0,0.00017342]
[1723684282730,1.18805,58920.0,58919.0,0.48891388]
[1723684282925,0.50925,58910.0,58905.0,0.009075]
[1723684283125,0.848795,58907.0,58906.0,0.069575]
[1723684283775,0.85645601,58907.0,58906.0,0.069575]
[1723684283975,0.85645601,58907.0,58906.0,0.064575]
[1723684284952,0.87045601,58907.0,58906.0,0.064575]
[1723684287596,0.99145321,58907.0,58906.0,0.064575]
[1723684287954,0.87045601,58907.0,58906.0,0.064575]
[1723684288374,1.20997401,58907.0,58906.0,0.064575]
[1723684289131,0.87045601,58907.0,58906.0,0.064575]
[1723684289544,0.88049443,58907.0,58906.0,0.064575]
[1723684289947,1.22001243,58907.0,58906.0,0.064575]
[1723684290162,1.00249567,58907.0,58906.0,0.064575]
[1723684291012,0.88049443,58907.0,58906.0,0.064575]
[1723684291224,0.53093801,58907.0,58906.0,0.064575]
[1723684291431,0.02166101,58907.0,58906.0,0.146875]
[1723684291635,0.19142001,58907.0,58906.0,0.146875]
[1723684291863,0.014,58907.0,58906.0,0.146875]
[1723684292072,0.02152013,58907.0,58906.0,0.146875]
[1723684292543,0.02152013,58907.0,58906.0,0.316636]
[1723684292748,0.02152013,58907.0,58906.0,0.146875]
[1723684296599,0.02152013,58907.0,58906.0,0.81913029]
[1723684296767,0.014,58907.0,58906.0,0.30984629]
[1723684297521,0.014,58907.0,58906.0,0.47960729]
[1723684297807,0.02152013,58907.0,58906.0,0.47960729]
[1723684298190,0.02152013,58907.0,58906.0,0.47460729]
[1723684298656,0.02152013,58907.0,58906.0,1.15365329]
[1723684298823,0.02152013,58907.0,58906.0,1.49317629]
[1723684299025,0.02152013,58907.0,58906.0,1.49408379]
[1723684299026,0.014,58907.0,58906.0,1.49408379]
[1723684299356,0.014825,58907.0,58906.0,1.49408379]
[1723684299573,0.014825,58907.0,58906.0,1.15456079]
[1723684299725,0.000825,58907.0,58906.0,1.15456079]
[1723684299945,0.014825,58907.0,58906.0,1.15456079]
[1723684300333,0.014825,58907.0,58906.0,0.81503779]
[1723684300539,0.000825,58907.0,58906.0,0.81503779]
[1723684300765,0.004825,58907.0,58906.0,0.81503779]
[1723684300992,0.174584,58907.0,58906.0,0.1427825]
[1723684301194,0.01239349,58907.0,58906.0,0.1427825]
[1723684301407,0.01239349,58907.0,58906.0,0.3125435]
[1723684301807,0.004825,58907.0,58906.0,0.6520665]
[1723684302063,0.004825,58907.0,58906.0,1.15456079]
[1723684302676,0.000825,58907.0,58906.0,1.15456079]
[1723684303099,0.004825,58907.0,58906.0,1.49408379]
[1723684303527,0.000825,58907.0,58906.0,1.49408379]
[1723684303728,0.007825,58907.0,58906.0,1.49408379]
[1723684310354,0.007825,58907.0,58906.0,1.15456079]
[1723684313387,0.007825,58907.0,58906.0,0.47551479]
[1723684313543,0.177584,58907.0,58906.0,0.0604825]
[1723684313743,0.52469416,58907.0,58906.0,0.0009075]
[1723684314650,0.86421216,58907.0,58906.0,0.0009075]
[1723684314849,0.92901216,58907.0,58906.0,0.0009075]
[1723684315401,1.00751216,58907.0,58906.0,0.0009075]
[1723684315612,1.05823341,58907.0,58906.0,0.0009075]
[1723684316375,1.58608333,58907.0,58906.0,0.0009075]
[1723684316752,1.51000145,58907.0,58906.0,0.0009075]
[1723684317075,1.69355608,58907.0,58906.0,0.0009075]
[1723684317511,1.70755608,58907.0,58906.0,0.0009075]
[1723684318330,1.7077598,58907.0,58906.0,0.0009075]
[1723684320333,1.60623957,58907.0,58906.0,0.0009075]
[1723684321571,1.64087347,58907.0,58906.0,0.0009075]
[1723684322659,2.12936276,58907.0,58906.0,0.0009075]
[1723684322870,2.40790591,58907.0,58906.0,0.00073871]
[1723684323077,2.42190591,58907.0,58906.0,0.00073871]
[1723684323286,2.77142391,58907.0,58906.0,0.00038423]
[1723684323494,2.75742391,58907.0,58906.0,0.00038423]
[1723684323697,2.74742391,58907.0,58906.0,0.00038423]
[1723684323899,2.77142391,58907.0,58906.0,0.00038423]
[1723684324107,1.877376,58906.0,58905.0,0.009075]
[1723684324326,1.877376,58906.0,58900.0,0.0115786]
[1723684324327,0.519328,58901.0,58900.0,0.0115786]
[1723684324535,0.519328,58901.0,58876.0,0.0662]
[1723684324536,0.169842,58878.0,58876.0,0.0662]
[1723684324739,0.0772,58885.0,58877.0,0.090475]
[1723684324740,0.3903576,58885.0,58877.0,0.090475]
[1723684324975,0.00748807,58878.0,58877.0,0.156675]
[1723684325191,0.169829,58883.0,58877.0,0.156675]
[1723684325395,0.169829,58883.0,58878.0,0.169841]
[1723684325607,0.00748807,58882.0,58880.0,0.169836]
[1723684325814,0.339647,58885.0,58878.0,0.16984]
[1723684326022,0.17732207,58881.0,58877.0,0.156675]
[1723684326223,0.339647,58885.0,58879.0,0.169839]
[1723684326224,0.169829,58883.0,58879.0,0.169839]
[1723684326425,0.00748807,58880.0,58879.0,0.169839]
[1723684326643,0.00748807,58880.0,58877.0,0.156675]
[1723684326644,0.16983,58883.0,58877.0,0.156675]
[1723684326860,0.05070122,58888.0,58883.0,0.0626]
[1723684327066,0.1698,58893.0,58889.0,0.1409]
[1723684327273,0.05070122,58895.0,58889.0,0.1409]
[1723684327455,0.339582,58896.0,58889.0,0.1409]
[1723684327693,0.339582,58896.0,58889.0,0.31071]
[1723684327905,0.05070122,58898.0,58891.0,0.0783]
[1723684327906,0.33957,58898.0,58891.0,0.0783]
[1723684328126,0.05070122,58901.0,58895.0,0.169791]
[1723684328345,0.05070122,58902.0,58896.0,0.1409]
[1723684328547,0.339554,58901.0,58896.0,0.1409]
[1723684328958,0.169786,58898.0,58896.0,0.1409]
[1723684329398,0.169787,58897.0,58896.0,0.1409]
[1723684330671,0.014,58897.0,58896.0,0.1409]
[1723684330870,0.183787,58897.0,58896.0,0.1409]
[1723684331075,0.014,58897.0,58896.0,0.31069]
[1723684331586,0.014,58897.0,58896.0,0.1409]
[1723684332462,0.0942,58897.0,58889.0,0.1469]
[1723684332631,0.509424,58890.0,58889.0,0.1469]
[1723684333036,0.509424,58890.0,58889.0,0.0641]
[1723684333441,0.509409,58892.0,58889.0,0.0641]
[1723684333684,0.169802,58892.0,58889.0,0.0641]
[1723684333886,0.169804,58892.0,58889.0,0.0641]
[1723684334089,0.169805,58891.0,58889.0,0.0641]
[1723684334299,0.339597,58894.0,58889.0,0.0641]
[1723684334455,0.169805,58891.0,58889.0,0.0641]
[1723684335105,0.169808,58890.0,58889.0,0.0641]
[1723684335311,0.181808,58890.0,58889.0,0.0641]
[1723684335509,0.012,58890.0,58889.0,0.0641]
[1723684335866,0.169807,58891.0,58889.0,0.0641]
[1723684336070,0.183807,58891.0,58890.0,0.0831]
[1723684336474,0.014,58891.0,58890.0,0.252908]
[1723684336724,0.169797,58894.0,58890.0,0.252908]
[1723684336960,0.169785,58898.0,58891.0,0.16297129]
[1723684337166,0.0506752,58902.0,58898.0,0.0818]
[1723684337290,0.169774,58902.0,58899.0,0.0633]
[1723684337704,0.0506752,58906.0,58899.0,0.0633]
[1723684337944,0.340345,58907.0,58899.0,0.0633]
[1723684337945,0.000825,58907.0,58905.0,0.0818]
[1723684338343,0.000825,58907.0,58906.0,0.73555529]
[1723684338597,0.000825,58907.0,58906.0,1.15687829]
[1723684338974,0.000825,58907.0,58906.0,0.81735529]
[1723684339393,0.014825,58907.0,58906.0,0.1451]
[1723684339806,0.000825,58907.0,58906.0,0.1451]
[1723684339949,0.170584,58907.0,58906.0,0.1451]
[1723684340157,0.170584,58907.0,58903.0,0.169769]
[1723684340158,0.16977,58903.0,58895.0,0.0818]
[1723684340360,0.007825,58907.0,58890.0,0.0633]
[1723684340361,0.339606,58892.0,58890.0,0.0633]
[1723684340575,0.509415,58891.0,58890.0,0.0633]
[1723684340805,0.16348565,58901.0,58890.0,0.0633]
[1723684340806,0.339576,58897.0,58890.0,0.0633]
[1723684341046,0.339571,58898.0,58890.0,0.0633]
[1723684341269,0.169805,58891.0,58890.0,0.0633]
[1723684341549,0.16348565,58901.0,58890.0,0.0633]
[1723684341550,0.169801,58893.0,58890.0,0.0633]
[1723684341856,0.169805,58891.0,58890.0,0.0633]
[1723684342271,0.00747025,58891.0,58890.0,0.0633]
[1723684342478,0.01547025,58891.0,58890.0,0.0633]
[1723684342678,0.008,58891.0,58890.0,0.0633]
[1723684342886,0.01547019,58891.0,58890.0,0.0633]
[1723684343091,0.00747019,58891.0,58890.0,0.0633]
[1723684343742,0.00747019,58891.0,58889.0,0.0009075]
[1723684343743,0.169808,58890.0,58889.0,0.0009075]
[1723684343942,0.17727383,58890.0,58889.0,0.0009075]
[1723684344813,0.51688983,58890.0,58889.0,0.0009075]
[1723684345226,0.52988983,58890.0,58889.0,0.0009075]
[1723684345639,1.02902266,58890.0,58889.0,0.0009075]
[1723684345864,0.93280583,58890.0,58889.0,0.0009075]
[1723684346127,0.91980583,58890.0,58889.0,0.0009075]
[1723684346585,0.93280583,58890.0,58889.0,0.0009075]
[1723684346841,0.02046583,58890.0,58889.0,0.2314185]
[1723684347078,0.013,58890.0,58889.0,0.2314185]
[1723684347320,0.013,58890.0,58889.0,0.0616075]
[1723684347968,0.02043398,58890.0,58889.0,0.0616075]
[1723684348354,0.02043398,58890.0,58889.0,0.2314185]
[1723684348554,0.013,58890.0,58889.0,0.1707185]
[1723684350447,0.02043398,58890.0,58889.0,0.1707185]
[1723684351035,0.013,58890.0,58889.0,0.1707185]
[1723684351231,0.02043398,58890.0,58889.0,0.1707185]
[1723684351677,0.02043398,58890.0,58889.0,0.0009075]
[1723684352091,0.02043398,58890.0,58889.0,0.1707185]
[1723684353098,0.02043398,58890.0,58889.0,0.0009075]
[1723684354136,0.02043398,58890.0,58889.0,0.1707185]
[1723684354779,0.02043398,58890.0,58889.0,1.01293379]
[1723684354989,0.02043398,58890.0,58889.0,1.49685579]
[1723684355197,0.013,58890.0,58889.0,1.49685579]
[1723684357758,0.013,58890.0,58889.0,1.15723379]
[1723684357950,0.013,58890.0,58889.0,0.81761179]
[1723684360424,0.013,58890.0,58889.0,0.73681179]
[1723684360651,0.013,58890.0,58889.0,0.0009075]
[1723684360652,0.522424,58890.0,58889.0,0.0009075]
[1723684361041,0.0202739,58890.0,58889.0,0.30637879]
[1723684361444,0.0202739,58890.0,58889.0,0.22437879]
[1723684361875,0.0202739,58890.0,58889.0,0.39418979]
[1723684362184,0.0202739,58890.0,58889.0,0.22437879]
[1723684362745,0.1900819,58890.0,58889.0,0.0009075]
[1723684363081,1.00618116,58890.0,58889.0,0.0009075]
[1723684363326,0.0202739,58890.0,58889.0,0.47278979]
[1723684363741,0.0202739,58890.0,58889.0,0.81241179]
[1723684363949,0.0202739,58890.0,58889.0,1.15203379]
[1723684364151,0.01279568,58890.0,58889.0,0.47278979]
[1723684364558,0.02026148,58890.0,58889.0,0.47278979]
[1723684364774,0.02026148,58890.0,58889.0,0.81241179]
[1723684365577,0.01279568,58890.0,58889.0,0.81241179]
[1723684365990,0.01279568,58890.0,58889.0,0.22607879]
[1723684366196,0.01279568,58890.0,58889.0,0.0009075]
[1723684366607,0.02026148,58890.0,58889.0,0.0009075]
[1723684368132,0.19006948,58890.0,58889.0,0.0009075]
[1723684368837,0.52968548,58890.0,58889.0,0.0009075]
[1723684369061,0.60848548,58890.0,58889.0,0.0009075]
[1723684369253,0.65928358,58890.0,58889.0,0.0009075]
[1723684369451,0.58048106,58890.0,58889.0,0.0009075]
[1723684369665,0.24086506,58890.0,58889.0,0.0009075]
[1723684370273,0.02026148,58890.0,58889.0,0.0009075]
[1723684370563,0.24087153,58890.0,58889.0,0.0009075]
[1723684370981,0.19006948,58890.0,58889.0,0.0009075]
[1723684371200,0.02026148,58890.0,58889.0,0.0009075]
[1723684371377,0.24087153,58890.0,58889.0,0.0009075]
[1723684371710,0.26613674,58890.0,58889.0,0.0009075]
[1723684371911,0.26613674,58890.0,58889.0,0.22647879]
[1723684371912,0.07107302,58890.0,58889.0,0.22647879]
[1723684372125,0.02026148,58890.0,58889.0,1.28463379]
[1723684372749,0.02026148,58890.0,58889.0,1.36573379]
[1723684373164,0.01279568,58890.0,58889.0,1.70535579]
[1723684373366,0.01361968,58890.0,58889.0,1.70535579]
[1723684374626,0.01361968,58890.0,58889.0,1.36573379]
[1723684375237,0.01361968,58890.0,58889.0,0.33368979]
[1723684375238,0.02107078,58890.0,58889.0,0.33368979]
[1723684375436,0.01361968,58890.0,58889.0,0.33368979]
[1723684375634,0.01361968,58890.0,58889.0,1.29933379]
[1723684375635,0.02107986,58890.0,58889.0,1.29933379]
[1723684375845,0.02107986,58890.0,58889.0,1.36593379]
[1723684376039,0.01361968,58890.0,58889.0,1.36593379]
[1723684376399,0.01361968,58890.0,58889.0,2.13607779]
[1723684376631,0.01361968,58890.0,58889.0,1.89645579]
[1723684376835,0.01361968,58890.0,58889.0,1.59645579]
[1723684377042,0.01361968,58890.0,58889.0,1.25683379]
[1723684377241,0.01361968,58890.0,58889.0,1.15683379]
[1723684377242,0.000824,58890.0,58889.0,1.15683379]
[1723684377643,0.009824,58890.0,58889.0,1.15683379]
[1723684378484,0.009824,58890.0,58889.0,1.07953379]
[1723684380288,0.009824,58890.0,58889.0,1.50075579]
[1723684380639,0.009824,58890.0,58889.0,1.16113379]
[1723684381713,0.009824,58890.0,58889.0,1.07953379]
[1723684382121,0.009824,58890.0,58889.0,0.73991179]
[1723684382344,0.009824,58890.0,58889.0,0.67331179]
[1723684382520,0.009824,58890.0,58889.0,1.01293379]
[1723684382521,0.01730041,58890.0,58889.0,1.01293379]
[1723684382760,0.01730041,58890.0,58889.0,1.15723379]
[1723684382967,0.01730041,58890.0,58889.0,1.49685579]
[1723684383175,0.009824,58890.0,58889.0,1.49685579]
[1723684384801,0.01730173,58890.0,58889.0,0.67331179]
[1723684385581,0.06810376,58890.0,58889.0,0.67331179]
[1723684386162,0.06810376,58890.0,58889.0,0.5103405]
[1723684386929,0.06810376,58890.0,58889.0,1.15833379]
[1723684388324,0.06811477,58890.0,58889.0,1.15833379]
[1723684388897,0.06811477,58890.0,58889.0,1.49795579]
[1723684389097,0.06811477,58890.0,58889.0,1.15833379]
[1723684390048,0.06811477,58890.0,58889.0,1.01293379]
[1723684390254,0.06811477,58890.0,58889.0,0.67331179]
[1723684391454,0.01730173,58890.0,58889.0,1.49825579]
[1723684391935,0.009824,58890.0,58889.0,1.49825579]
[1723684392117,0.009824,58890.0,58889.0,1.59825579]
[1723684392905,0.000824,58890.0,58889.0,1.59825579]
[1723684393318,0.001824,58890.0,58889.0,1.59825579]
[1723684394498,0.001824,58890.0,58889.0,0.33368979]
[1723684394701,0.001824,58890.0,58889.0,0.67331179]
[1723684395079,0.00932216,58890.0,58889.0,0.67331179]
[1723684395495,0.2299432,58890.0,58889.0,0.0009075]
[1723684395696,0.46296022,58890.0,58889.0,0.0009075]
[1723684395900,0.16614714,58890.0,58889.0,0.0009075]
[1723684396297,0.16614714,58890.0,58889.0,0.1707185]
[1723684396298,0.00932216,58890.0,58889.0,0.1707185]
[1723684396469,0.08450371,58890.0,58889.0,0.1707185]
[1723684396702,0.17813016,58890.0,58889.0,0.0009075]
[1723684396903,0.2243574,58890.0,58889.0,0.0009075]
[1723684397299,0.12279928,58890.0,58889.0,0.0009075]
[1723684397688,0.09252626,58890.0,58889.0,0.0009075]
[1723684397822,0.01632216,58890.0,58889.0,0.0009075]
[1723684398025,0.12266413,58890.0,58889.0,0.0009075]
[1723684398226,0.11466413,58890.0,58889.0,0.0009075]
[1723684398836,0.11477245,58890.0,58889.0,0.0009075]
[1723684399045,0.12476873,58890.0,58889.0,0.0009075]
[1723684399482,0.11476873,58890.0,58889.0,0.0009075]
[1723684399912,0.12376873,58890.0,58889.0,0.0009075]
[1723684400358,0.63319273,58890.0,58889.0,0.0009075]
[1723684400508,0.18713016,58890.0,58889.0,0.0009075]
[1723684401245,0.52674616,58890.0,58889.0,0.0009075]
[1723684401646,1.00716216,58890.0,58889.0,0.0009075]
[1723684402630,1.11435881,58890.0,58889.0,0.0009075]
[1723684402829,1.21598168,58890.0,58889.0,0.0009075]
[1723684403294,1.4511086,58890.0,58889.0,0.0009075]
[1723684403704,1.60346439,58890.0,58889.0,0.0009075]
[1723684404289,1.65763034,58890.0,58889.0,0.0009075]
[1723684404631,1.63819207,58890.0,58889.0,0.0009075]
[1723684405287,1.4511086,58890.0,58889.0,0.0009075]
[1723684406026,0.6310766,58890.0,58889.0,0.0009075]
[1723684406243,1.0508926,58890.0,58889.0,0.0009075]
[1723684406472,0.7765766,58890.0,58889.0,0.0009075]
[1723684406878,1.1161926,58890.0,58889.0,0.0009075]
[1723684407296,0.7765766,58890.0,58889.0,0.0009075]
[1723684408433,1.1161926,58890.0,58889.0,0.0009075]
[1723684409078,0.7765766,58890.0,58889.0,0.0009075]
[1723684409285,0.2914606,58890.0,58889.0,0.0009075]
[1723684409471,0.1216526,58890.0,58889.0,0.0009075]
[1723684409973,0.2914606,58890.0,58889.0,0.0009075]
[1723684410186,0.1216526,58890.0,58889.0,0.0009075]
[1723684411833,0.1216526,58890.0,58889.0,0.5103405]
[1723684411960,0.22312491,58890.0,58889.0,0.1707185]
[1723684412373,0.01732216,58890.0,58889.0,0.5103405]
[1723684412955,0.01732216,58890.0,58889.0,0.1707185]
[1723684413215,0.09341911,58890.0,58889.0,0.1707185]
[1723684413608,0.01732216,58890.0,58889.0,0.1707185]
[1723684414446,0.02232216,58890.0,58889.0,0.1707185]
[1723684414692,0.02232216,58890.0,58889.0,0.5882405]
[1723684414943,0.02232216,58890.0,58889.0,0.2486185]
[1723684415704,0.02232216,58890.0,58889.0,0.5882405]
[1723684415936,0.02232216,58890.0,58889.0,1.49515579]
[1723684416273,0.014824,58890.0,58889.0,2.13477779]
[1723684416479,0.014824,58890.0,58889.0,2.23477779]
[1723684417108,0.009824,58890.0,58889.0,2.23477779]
[1723684417314,0.009824,58890.0,58889.0,2.24784081]
[1723684417483,0.000824,58890.0,58889.0,2.24784081]
[1723684417685,0.001824,58890.0,58889.0,2.24784081]
[1723684418251,0.000824,58890.0,58889.0,2.24784081]
[1723684418684,0.001824,58890.0,58889.0,2.24884081]
[1723684419067,0.001824,58890.0,58889.0,2.27184081]
[1723684419321,0.001824,58890.0,58889.0,2.61146281]
[1723684419526,0.001824,58890.0,58889.0,2.60846281]
[1723684419723,0.000826,58900.0,58899.0,1.828038]
[1723684419957,0.000826,58900.0,58899.0,2.33690929]
[1723684420803,0.000826,58900.0,58899.0,2.77647329]
[1723684421015,0.000825,58907.0,58899.0,2.77647329]
[1723684421016,0.000825,58907.0,58906.0,1.83423]
[1723684421219,0.000825,58907.0,58906.0,2.43672429]
[1723684423195,0.000825,58907.0,58906.0,2.46000004]
[1723684423394,0.000825,58907.0,58906.0,1.82047704]
[1723684423592,0.000825,58907.0,58906.0,1.81020129]
[1723684423989,0.001825,58907.0,58906.0,1.81820129]
[1723684425208,0.001825,58907.0,58906.0,2.11820129]
[1723684425617,0.001825,58907.0,58906.0,1.81820129]
[1723684427977,0.001825,58907.0,58906.0,2.87873294]
[1723684428185,0.10112987,58932.0,58906.0,2.87873294]
[1723684428186,0.13336493,58934.0,58926.0,0.2091]
[1723684428344,0.0828,58934.0,58927.0,0.16297129]
[1723684428566,0.91304387,58943.0,58938.0,0.169669]
[1723684428567,0.1467,58939.0,58938.0,0.169669]
[1723684428770,0.1467,58939.0,58938.0,0.509008]
[1723684428771,0.0828,58939.0,58938.0,0.509008]
[1723684428966,0.0828,58939.0,58938.0,0.169669]
[1723684429828,0.0828,58939.0,58938.0,0.509008]
[1723684430230,0.004,58939.0,58938.0,0.67297929]
[1723684430480,0.004,58939.0,58938.0,1.01231829]
[1723684431871,0.018,58939.0,58938.0,1.01331829]
[1723684432449,0.0763,58945.0,58942.0,0.169656]
[1723684432649,0.0763,58945.0,58944.0,0.169652]
[1723684433838,0.0803,58945.0,58944.0,0.170652]
[1723684434403,0.004,58945.0,58944.0,0.170652]
[1723684434619,0.004,58945.0,58944.0,0.001]
[1723684434866,0.018,58945.0,58944.0,0.001]
[1723684435247,1.0595497,58945.0,58944.0,0.001]
[1723684435453,0.655448,58945.0,58944.0,0.001]
[1723684435625,1.008747,58945.0,58944.0,0.002]
[1723684437735,0.669448,58945.0,58944.0,0.002]
[1723684438146,0.330149,58945.0,58944.0,0.002]
[1723684438420,0.018,58945.0,58944.0,0.171652]
[1723684438828,0.018,58945.0,58944.0,0.002]
[1723684441415,0.263149,58945.0,58944.0,0.002]
[1723684441823,0.667748,58945.0,58944.0,0.002]
[1723684442222,0.018,58945.0,58944.0,0.171652]
[1723684443238,0.02659179,58945.0,58944.0,0.171652]
[1723684444763,0.018824,58945.0,58944.0,0.171652]
[1723684445028,0.018824,58945.0,58944.0,0.002]
[1723684445236,0.02659179,58945.0,58944.0,0.002]
[1723684447443,0.02659179,58945.0,58944.0,0.510957]
[1723684447653,0.02659179,58945.0,58944.0,0.171652]
[1723684448299,0.01259179,58945.0,58944.0,0.170652]
[1723684448836,0.02659179,58945.0,58944.0,0.171652]
[1723684449185,0.00859179,58945.0,58944.0,0.169652]
[1723684449564,0.02659179,58945.0,58944.0,0.171652]
[1723684450182,0.02659179,58945.0,58944.0,0.002]
[1723684450387,0.02259179,58945.0,58944.0,0.001]
[1723684450646,0.02659179,58945.0,58944.0,0.002]
[1723684452097,1.01853879,58945.0,58944.0,0.002]
[1723684453155,0.347517,58949.0,58948.0,0.639282]
[1723684453156,0.00824,58949.0,58948.0,0.639282]
[1723684453363,0.000825,58951.0,58950.0,0.571805]
[1723684453654,0.000825,58951.0,58950.0,2.13818629]
[1723684453863,0.000825,58951.0,58950.0,2.47745629]
[1723684454091,0.000825,58951.0,58950.0,2.50045629]
[1723684455561,0.001825,58951.0,58950.0,2.51045629]
[1723684455969,0.001825,58951.0,58950.0,2.52445629]
[1723684456631,0.001825,58951.0,58950.0,2.18518629]
[1723684462780,0.001825,58951.0,58950.0,1.82291629]
[1723684462979,0.001825,58951.0,58950.0,1.13514629]
[1723684463189,0.001825,58951.0,58950.0,0.18697129]
[1723684463409,0.171457,58951.0,58950.0,0.18697129]
[1723684463618,0.7046915,58951.0,58950.0,0.024]
[1723684463829,0.0763,58950.0,58938.0,0.067937]
[1723684464034,0.0763,58950.0,58933.0,0.34955675]